[Event "*** Titled Tuesday 3|2 Blitz (Early)"]
[Site "Chess.com"]
[Date "2016.12.06"]
[Round "3"]
[White "jncool68"]
[Black "vovkcoach"]
[Result "1-0"]
[WhiteElo "2492"]
[BlackElo "2549"]
[TimeControl "180+2"]
[EndTime "11:32:01 PST"]
[Termination "jncool68 won by resignation"]

1. e4 {[%clk 0:02:59.7]} 1... e6 {[%clk 0:02:57.8]} 2. d4 {[%clk 0:03:00.2]}
2... d5 {[%clk 0:02:59.3]} 3. Nc3 {[%clk 0:03:01.7]} 3... Bb4 {[%clk 0:02:57.3]}
4. e5 {[%clk 0:03:02.5]} 4... c5 {[%clk 0:02:58.5]} 5. Bd2 {[%clk 0:03:03.7]}
5... Ne7 {[%clk 0:02:55.5]} 6. a3 {[%clk 0:03:04.4]} 6... Bxc3 {[%clk
0:02:54.1]} 7. Bxc3 {[%clk 0:03:06.3]} 7... cxd4 {[%clk 0:02:51.2]} 8. Qxd4
{[%clk 0:03:06.4]} 8... Nbc6 {[%clk 0:02:51.2]} 9. Qg4 {[%clk 0:03:06]} 9... O-O
{[%clk 0:02:38.4]} 10. Nf3 {[%clk 0:03:05.5]} 10... Qb6 {[%clk 0:02:26.7]} 11.
Bd3 {[%clk 0:03:02.1]} 11... Nf5 {[%clk 0:02:19.3]} 12. O-O {[%clk 0:02:50.6]}
12... d4 {[%clk 0:02:15.9]} 13. Bd2 {[%clk 0:02:51.6]} 13... Bd7 {[%clk
0:02:04.9]} 14. Rfe1 {[%clk 0:02:50.2]} 14... Rfd8 {[%clk 0:02:04.6]} 15. b4
{[%clk 0:02:36.6]} 15... Rac8 {[%clk 0:02:01.7]} 16. Ng5 {[%clk 0:02:31.8]}
16... h6 {[%clk 0:01:50.4]} 17. Ne4 {[%clk 0:02:32.6]} 17... Kf8 {[%clk
0:01:50.4]} 18. Nf6 {[%clk 0:02:29.1]} 18... Nce7 {[%clk 0:01:27.8]} 19. Nh5
{[%clk 0:02:06.5]} 19... Bb5 {[%clk 0:01:24.5]} 20. Nxg7 {[%clk 0:02:06.9]}
20... Bxd3 {[%clk 0:01:22.2]} 21. cxd3 {[%clk 0:01:59.2]} 21... Nxg7 {[%clk
0:01:21.9]} 22. Bxh6 {[%clk 0:02:00.8]} 22... Nf5 {[%clk 0:01:20]} 23. Bg5
{[%clk 0:02:01.9]} 23... Rd5 {[%clk 0:01:17.8]} 24. Qh3 {[%clk 0:01:58.9]} 24...
Ke8 {[%clk 0:00:58.6]} 25. g4 {[%clk 0:01:59.7]} 25... Rc2 {[%clk 0:00:47.3]}
26. gxf5 {[%clk 0:01:55.6]} 26... Nxf5 {[%clk 0:00:49.2]} 27. Qh7 {[%clk
0:01:49.8]} 27... Ne7 {[%clk 0:00:36.6]} 28. Rac1 {[%clk 0:01:48.2]} 28... Qc7
{[%clk 0:00:33.9]} 29. Qh8+ {[%clk 0:01:45]} 29... Kd7 {[%clk 0:00:33.9]} 30.
Qf6 {[%clk 0:01:45.6]} 1-0

[Event "*** Titled Tuesday 3|2 Blitz (Early)"]
[Site "Chess.com"]
[Date "2016.12.06"]
[Round "3"]
[White "MateusViageiro"]
[Black "stuffings101"]
[Result "1-0"]
[WhiteElo "2266"]
[BlackElo "2171"]
[TimeControl "180+2"]
[EndTime "11:32:18 PST"]
[Termination "MateusViageiro won on time"]

1. e4 {[%clk 0:03:01.9]} 1... d6 {[%clk 0:03:00.2]} 2. d4 {[%clk 0:03:01.8]}
2... Nf6 {[%clk 0:03:01.1]} 3. Nc3 {[%clk 0:03:03.2]} 3... g6 {[%clk 0:03:01.9]}
4. f3 {[%clk 0:03:04.6]} 4... a6 {[%clk 0:03:01.5]} 5. Be3 {[%clk 0:03:06.1]}
5... b5 {[%clk 0:03:01.4]} 6. Qd2 {[%clk 0:03:07.4]} 6... Nbd7 {[%clk
0:03:02.2]} 7. O-O-O {[%clk 0:03:08.1]} 7... Nb6 {[%clk 0:03:00.7]} 8. Bd3
{[%clk 0:03:06.1]} 8... Bg7 {[%clk 0:02:59.8]} 9. Kb1 {[%clk 0:03:06.3]} 9...
O-O {[%clk 0:02:55.3]} 10. g4 {[%clk 0:03:07]} 10... e5 {[%clk 0:02:53.1]} 11.
d5 {[%clk 0:03:06.4]} 11... Rb8 {[%clk 0:02:41.4]} 12. h4 {[%clk 0:03:07.2]}
12... h5 {[%clk 0:02:40.9]} 13. Bg5 {[%clk 0:03:06]} 13... hxg4 {[%clk 0:02:09]}
14. h5 {[%clk 0:03:05.8]} 14... Qd7 {[%clk 0:02:09.6]} 15. h6 {[%clk 0:02:55.2]}
15... Bh8 {[%clk 0:02:01.9]} 16. h7+ {[%clk 0:02:49.8]} 16... Nxh7 {[%clk
0:01:50.5]} 17. Qh2 {[%clk 0:02:48.4]} 17... f6 {[%clk 0:01:46.2]} 18. Bh6
{[%clk 0:02:48.8]} 18... Rf7 {[%clk 0:01:44.2]} 19. fxg4 {[%clk 0:02:48.9]}
19... Qxg4 {[%clk 0:01:43]} 20. Nge2 {[%clk 0:02:47.7]} 20... g5 {[%clk
0:01:21.6]} 21. Rdg1 {[%clk 0:02:44.1]} 21... Qd7 {[%clk 0:01:20.8]} 22. Ng3
{[%clk 0:02:42.9]} 22... Qe7 {[%clk 0:01:14]} 23. Be2 {[%clk 0:02:41]} 23... b4
{[%clk 0:01:03]} 24. Nd1 {[%clk 0:02:40.1]} 24... Bg7 {[%clk 0:00:56.4]} 25. Ne3
{[%clk 0:02:35.2]} 25... Bxh6 {[%clk 0:00:50.7]} 26. Qxh6 {[%clk 0:02:34.6]}
26... Qf8 {[%clk 0:00:51.7]} 27. Qh2 {[%clk 0:02:33.8]} 27... Qg7 {[%clk
0:00:40.9]} 28. Nef5 {[%clk 0:02:34.2]} 28... Bxf5 {[%clk 0:00:38.7]} 29. Nxf5
{[%clk 0:02:35]} 29... Qf8 {[%clk 0:00:33.4]} 30. Nh6+ {[%clk 0:02:35.7]} 30...
Kh8 {[%clk 0:00:34.5]} 31. Nxf7+ {[%clk 0:02:35.5]} 31... Qxf7 {[%clk
0:00:35.6]} 32. Bg4 {[%clk 0:02:36.7]} 32... Rg8 {[%clk 0:00:33]} 33. Be6 {[%clk
0:02:36.6]} 33... Qg7 {[%clk 0:00:32.1]} 34. Bf5 {[%clk 0:02:32.2]} 34... Rf8
{[%clk 0:00:25.9]} 35. Bxh7 {[%clk 0:02:32.6]} 1-0

[Event "*** Titled Tuesday 3|2 Blitz (Early)"]
[Site "Chess.com"]
[Date "2016.12.06"]
[Round "3"]
[White "Rating-Schmating"]
[Black "alturas_pacificas"]
[Result "1/2-1/2"]
[WhiteElo "2215"]
[BlackElo "2166"]
[TimeControl "180+2"]
[EndTime "11:32:27 PST"]
[Termination "Game drawn by repetition"]

1. e4 {[%clk 0:03:01.9]} 1... e5 {[%clk 0:03:00.3]} 2. Nf3 {[%clk 0:03:02.7]}
2... Nf6 {[%clk 0:03:01.4]} 3. Nxe5 {[%clk 0:03:03.3]} 3... d6 {[%clk
0:03:02.2]} 4. Nf3 {[%clk 0:03:04.6]} 4... Nxe4 {[%clk 0:03:03]} 5. Nc3 {[%clk
0:03:06]} 5... Nxc3 {[%clk 0:03:02.7]} 6. bxc3 {[%clk 0:03:06.6]} 6... Be7
{[%clk 0:03:04.2]} 7. g3 {[%clk 0:03:07.9]} 7... O-O {[%clk 0:03:04.3]} 8. Bg2
{[%clk 0:03:09.3]} 8... Nd7 {[%clk 0:03:01.8]} 9. O-O {[%clk 0:03:09.3]} 9... c6
{[%clk 0:03:03]} 10. d3 {[%clk 0:03:09]} 10... d5 {[%clk 0:03:03.6]} 11. Be3
{[%clk 0:03:09.8]} 11... Bf6 {[%clk 0:03:00.5]} 12. Bd4 {[%clk 0:03:09.6]} 12...
Re8 {[%clk 0:03:00.2]} 13. Qd2 {[%clk 0:03:09.9]} 13... Bxd4 {[%clk 0:02:51.3]}
14. cxd4 {[%clk 0:03:10.4]} 14... Nf6 {[%clk 0:02:50.8]} 15. Rae1 {[%clk
0:03:09.4]} 15... Bd7 {[%clk 0:02:36.6]} 16. Ne5 {[%clk 0:03:08.4]} 16... Qc7
{[%clk 0:02:33.7]} 17. Nxd7 {[%clk 0:03:08.6]} 17... Qxd7 {[%clk 0:02:30.5]} 18.
c4 {[%clk 0:03:07.9]} 18... dxc4 {[%clk 0:02:25.4]} 19. dxc4 {[%clk 0:03:01.5]}
19... Rxe1 {[%clk 0:02:12]} 20. Rxe1 {[%clk 0:03:02.1]} 20... Rd8 {[%clk
0:02:13.2]} 21. Rb1 {[%clk 0:02:56.7]} 21... h6 {[%clk 0:01:52.4]} 22. h3 {[%clk
0:02:53.4]} 22... Qxd4 {[%clk 0:01:49]} 23. Qxd4 {[%clk 0:02:53.2]} 23... Rxd4
{[%clk 0:01:49.9]} 24. Rxb7 {[%clk 0:02:54.2]} 24... a5 {[%clk 0:01:44.2]} 25.
Ra7 {[%clk 0:02:52.5]} 25... Rxc4 {[%clk 0:01:30.4]} 26. Rxa5 {[%clk 0:02:52.9]}
26... Rc1+ {[%clk 0:01:30.6]} 27. Kh2 {[%clk 0:02:53.7]} 27... Rc2 {[%clk
0:01:32.1]} 28. Kg1 {[%clk 0:02:46.8]} 28... Rc1+ {[%clk 0:01:30.5]} 29. Bf1
{[%clk 0:02:46.7]} 29... c5 {[%clk 0:01:14.1]} 30. Kg2 {[%clk 0:02:47.4]} 30...
c4 {[%clk 0:01:11.6]} 31. Rc5 {[%clk 0:02:47.8]} 31... c3 {[%clk 0:01:11.6]} 32.
Bd3 {[%clk 0:02:48.6]} 32... Kf8 {[%clk 0:01:11]} 33. a4 {[%clk 0:02:48.3]}
33... Ke7 {[%clk 0:01:08.4]} 34. a5 {[%clk 0:02:49.4]} 34... Kd6 {[%clk
0:01:09.3]} 35. Rc8 {[%clk 0:02:45.7]} 35... Ra1 {[%clk 0:00:58]} 36. a6 {[%clk
0:02:45.1]} 36... Nd5 {[%clk 0:00:53.4]} 37. Be4 {[%clk 0:02:36.1]} 37... Nb4
{[%clk 0:00:36]} 38. Rxc3 {[%clk 0:02:34.6]} 38... Rxa6 {[%clk 0:00:35.4]} 39.
Rb3 {[%clk 0:02:35.3]} 39... Nc6 {[%clk 0:00:36.1]} 40. Bxc6 {[%clk 0:02:33.5]}
40... Rxc6 {[%clk 0:00:38]} 41. Rb7 {[%clk 0:02:33.5]} 41... Rc7 {[%clk
0:00:39.5]} 42. Rxc7 {[%clk 0:02:28.3]} 42... Kxc7 {[%clk 0:00:41.4]} 43. Kf3
{[%clk 0:02:29.6]} 43... Kd6 {[%clk 0:00:42.8]} 44. Ke4 {[%clk 0:02:31.2]} 44...
Ke6 {[%clk 0:00:44.2]} 45. g4 {[%clk 0:02:31.5]} 45... g6 {[%clk 0:00:43]} 46.
f4 {[%clk 0:02:29.5]} 46... f5+ {[%clk 0:00:42.4]} 47. gxf5+ {[%clk 0:02:30.8]}
47... gxf5+ {[%clk 0:00:44.3]} 48. Kd4 {[%clk 0:02:31.8]} 48... Kd6 {[%clk
0:00:45.6]} 49. Kc4 {[%clk 0:02:32.8]} 49... Kc6 {[%clk 0:00:44.7]} 50. Kd4
{[%clk 0:02:33.2]} 50... Kd6 {[%clk 0:00:46]} 51. Kc4 {[%clk 0:02:33.9]} 51...
Kc6 {[%clk 0:00:47.1]} 52. Kd4 {[%clk 0:02:35.2]} 52... Kd6 {[%clk 0:00:47.8]}
53. Kc4 {[%clk 0:02:36.4]} 1/2-1/2

[Event "*** Titled Tuesday 3|2 Blitz (Early)"]
[Site "Chess.com"]
[Date "2016.12.06"]
[Round "3"]
[White "Izoria123"]
[Black "ZivkovicN"]
[Result "1-0"]
[WhiteElo "2552"]
[BlackElo "2417"]
[TimeControl "180+2"]
[EndTime "11:32:31 PST"]
[Termination "Izoria123 won by resignation"]

1. Nf3 {[%clk 0:03:02]} 1... Nf6 {[%clk 0:03:00.7]} 2. c4 {[%clk 0:03:02.9]}
2... e6 {[%clk 0:03:01.6]} 3. g3 {[%clk 0:03:03.1]} 3... d5 {[%clk 0:03:02.4]}
4. Bg2 {[%clk 0:03:04.2]} 4... Be7 {[%clk 0:03:03.5]} 5. d4 {[%clk 0:03:04.8]}
5... O-O {[%clk 0:03:04.1]} 6. Qc2 {[%clk 0:03:05.8]} 6... c6 {[%clk 0:03:05.1]}
7. O-O {[%clk 0:03:06.2]} 7... b6 {[%clk 0:03:06.6]} 8. Nbd2 {[%clk 0:03:04.2]}
8... Bb7 {[%clk 0:03:06.3]} 9. e4 {[%clk 0:03:03]} 9... Na6 {[%clk 0:03:07.4]}
10. cxd5 {[%clk 0:03:01.8]} 10... cxd5 {[%clk 0:03:06.4]} 11. e5 {[%clk
0:03:02.9]} 11... Nb4 {[%clk 0:03:02.1]} 12. Qb3 {[%clk 0:02:59.8]} 12... Ne4
{[%clk 0:02:50.4]} 13. a3 {[%clk 0:02:54.9]} 13... Nc6 {[%clk 0:02:38.7]} 14.
Qe3 {[%clk 0:02:54.6]} 14... Ba6 {[%clk 0:02:19]} 15. Nxe4 {[%clk 0:02:18]}
15... Bxf1 {[%clk 0:02:13.8]} 16. Bxf1 {[%clk 0:02:13.8]} 16... dxe4 {[%clk
0:02:14.6]} 17. Qxe4 {[%clk 0:02:15.7]} 17... Rc8 {[%clk 0:02:12.6]} 18. Bd3
{[%clk 0:02:08.1]} 18... g6 {[%clk 0:02:13.4]} 19. Bh6 {[%clk 0:01:58.7]} 19...
Re8 {[%clk 0:02:14.5]} 20. Qf4 {[%clk 0:01:44]} 20... Qd5 {[%clk 0:01:43.2]} 21.
Rd1 {[%clk 0:01:23.8]} 21... Qb3 {[%clk 0:01:23.1]} 22. Rd2 {[%clk 0:01:18.9]}
22... Bf8 {[%clk 0:01:09.8]} 23. Bxf8 {[%clk 0:01:10.1]} 23... Rxf8 {[%clk
0:01:08.4]} 24. Qh6 {[%clk 0:01:11.2]} 24... Nxd4 {[%clk 0:00:50.2]} 25. Ng5
{[%clk 0:01:07.1]} 25... Rc1+ {[%clk 0:00:43.5]} 26. Kg2 {[%clk 0:01:07.4]}
26... Qd5+ {[%clk 0:00:36.6]} 27. Kh3 {[%clk 0:01:04.4]} 1-0

[Event "*** Titled Tuesday 3|2 Blitz (Early)"]
[Site "Chess.com"]
[Date "2016.12.06"]
[Round "3"]
[White "Abdodi"]
[Black "calemcc"]
[Result "0-1"]
[WhiteElo "1998"]
[BlackElo "2129"]
[TimeControl "180+2"]
[EndTime "11:32:33 PST"]
[Termination "calemcc won by checkmate"]

1. e4 {[%clk 0:03:01.9]} 1... e6 {[%clk 0:03:01.4]} 2. d4 {[%clk 0:02:58.3]}
2... d5 {[%clk 0:03:03.3]} 3. Nc3 {[%clk 0:02:50.2]} 3... Nf6 {[%clk 0:03:02.7]}
4. Bg5 {[%clk 0:02:48.9]} 4... dxe4 {[%clk 0:03:04.1]} 5. Nxe4 {[%clk
0:02:48.1]} 5... Be7 {[%clk 0:03:05.4]} 6. Bxf6 {[%clk 0:02:33.3]} 6... gxf6
{[%clk 0:03:05]} 7. Bc4 {[%clk 0:02:17.4]} 7... b6 {[%clk 0:03:01.1]} 8. Ne2
{[%clk 0:02:12.9]} 8... Bb7 {[%clk 0:03:01.1]} 9. f3 {[%clk 0:02:05.7]} 9... c6
{[%clk 0:02:25]} 10. Qd2 {[%clk 0:02:00.3]} 10... Qc7 {[%clk 0:02:24.8]} 11.
O-O-O {[%clk 0:01:53]} 11... Nd7 {[%clk 0:02:24.7]} 12. N2c3 {[%clk 0:01:37.3]}
12... O-O-O {[%clk 0:02:23]} 13. Qh6 {[%clk 0:01:30.1]} 13... f5 {[%clk
0:02:19.9]} 14. Ng5 {[%clk 0:01:21.1]} 14... Qf4+ {[%clk 0:02:19.4]} 15. Kb1
{[%clk 0:01:17.1]} 15... Qxg5 {[%clk 0:02:15.8]} 16. Qh3 {[%clk 0:01:17]} 16...
Nf6 {[%clk 0:02:09.6]} 17. Rhe1 {[%clk 0:01:04.6]} 17... h5 {[%clk 0:01:54.4]}
18. g3 {[%clk 0:00:50.2]} 18... c5 {[%clk 0:01:49.4]} 19. f4 {[%clk 0:00:48.3]}
19... Qg4 {[%clk 0:01:47.8]} 20. Qf1 {[%clk 0:00:40.1]} 20... cxd4 {[%clk
0:01:37.2]} 21. Nb5 {[%clk 0:00:37.9]} 21... Kb8 {[%clk 0:01:38.6]} 22. Nxd4
{[%clk 0:00:35.4]} 22... Bc5 {[%clk 0:01:35.7]} 23. Nb3 {[%clk 0:00:30.4]} 23...
Bb4 {[%clk 0:01:28.2]} 24. Rxd8+ {[%clk 0:00:26.7]} 24... Rxd8 {[%clk
0:01:30.1]} 25. Rc1 {[%clk 0:00:27.5]} 25... Ne4 {[%clk 0:01:25.8]} 26. a3
{[%clk 0:00:26.5]} 26... Bc5 {[%clk 0:01:25.4]} 27. Be2 {[%clk 0:00:17.9]} 27...
Qg7 {[%clk 0:01:23.6]} 28. Bxh5 {[%clk 0:00:17.9]} 28... Bxa3 {[%clk 0:01:17.7]}
29. bxa3 {[%clk 0:00:17.2]} 29... Nc3+ {[%clk 0:01:17.5]} 30. Ka1 {[%clk
0:00:17.5]} 30... Nd1+ {[%clk 0:01:17.5]} 31. Ka2 {[%clk 0:00:15.9]} 31... Qb2#
{[%clk 0:01:17]} 0-1

[Event "*** Titled Tuesday 3|2 Blitz (Early)"]
[Site "Chess.com"]
[Date "2016.12.06"]
[Round "3"]
[White "BjarkeSahl"]
[Black "pedromartinez91"]
[Result "0-1"]
[WhiteElo "2154"]
[BlackElo "2340"]
[TimeControl "180+2"]
[EndTime "11:32:41 PST"]
[Termination "pedromartinez91 won by resignation"]

1. e4 {[%clk 0:03:01.9]} 1... e6 {[%clk 0:03:00.5]} 2. d4 {[%clk 0:03:01.4]}
2... d5 {[%clk 0:03:01.2]} 3. Nc3 {[%clk 0:03:01.3]} 3... Nf6 {[%clk 0:03:01.4]}
4. Bg5 {[%clk 0:03:00.4]} 4... Be7 {[%clk 0:03:01.5]} 5. e5 {[%clk 0:02:53.9]}
5... Ne4 {[%clk 0:03:01.9]} 6. Bd2 {[%clk 0:02:46.1]} 6... c5 {[%clk 0:03:00]}
7. Bb5+ {[%clk 0:02:37.4]} 7... Nc6 {[%clk 0:02:59.7]} 8. Nge2 {[%clk
0:02:37.8]} 8... Nxd2 {[%clk 0:02:53.9]} 9. Qxd2 {[%clk 0:02:38]} 9... Bd7
{[%clk 0:02:55.3]} 10. Bxc6 {[%clk 0:02:37.6]} 10... bxc6 {[%clk 0:02:54.5]} 11.
O-O {[%clk 0:02:34]} 11... cxd4 {[%clk 0:02:52.1]} 12. Qxd4 {[%clk 0:02:33.3]}
12... Qb6 {[%clk 0:02:48.6]} 13. Qg4 {[%clk 0:02:30.2]} 13... O-O {[%clk
0:02:43.5]} 14. Rab1 {[%clk 0:02:28.5]} 14... f6 {[%clk 0:02:29.2]} 15. Nf4
{[%clk 0:02:17.2]} 15... fxe5 {[%clk 0:02:07.8]} 16. Nh5 {[%clk 0:02:08.1]}
16... g6 {[%clk 0:02:02.4]} 17. Rbd1 {[%clk 0:02:05.6]} 17... Qb4 {[%clk
0:01:55.5]} 18. Qxb4 {[%clk 0:01:39.1]} 18... Bxb4 {[%clk 0:01:54.5]} 19. Ng3
{[%clk 0:01:41]} 19... Bxc3 {[%clk 0:01:48.5]} 20. bxc3 {[%clk 0:01:41.7]} 20...
Rab8 {[%clk 0:01:47.4]} 21. Ne4 {[%clk 0:01:37.6]} 21... Rb2 {[%clk 0:01:46.1]}
22. Nc5 {[%clk 0:01:33.9]} 22... Bc8 {[%clk 0:01:38.8]} 23. Rd2 {[%clk
0:01:23.9]} 23... Rxa2 {[%clk 0:01:33.7]} 24. f3 {[%clk 0:01:24.1]} 24... Ra5
{[%clk 0:01:33.6]} 25. Nd3 {[%clk 0:01:23.8]} 25... Ba6 {[%clk 0:01:33.6]} 26.
Re1 {[%clk 0:01:24.1]} 26... Bxd3 {[%clk 0:01:28.9]} 27. cxd3 {[%clk 0:01:25.3]}
27... Rf5 {[%clk 0:01:29.4]} 28. d4 {[%clk 0:01:22.9]} 28... exd4 {[%clk
0:01:28.4]} 29. cxd4 {[%clk 0:01:24]} 29... Rf6 {[%clk 0:01:01.4]} 30. Rc1
{[%clk 0:01:20.7]} 30... Ra6 {[%clk 0:01:00.6]} 31. Rb2 {[%clk 0:01:21.5]} 31...
Kg7 {[%clk 0:00:57.8]} 32. Rb7+ {[%clk 0:01:20.1]} 32... Rf7 {[%clk 0:00:58.6]}
33. Rb4 {[%clk 0:01:15.3]} 33... Kf6 {[%clk 0:00:59.1]} 34. g4 {[%clk 0:01:12]}
34... e5 {[%clk 0:00:58.8]} 35. dxe5+ {[%clk 0:01:11.7]} 35... Kxe5 {[%clk
0:00:59.9]} 36. Re1+ {[%clk 0:01:13.2]} 36... Kd6 {[%clk 0:01:00.8]} 37. Kg2
{[%clk 0:01:14.4]} 37... Ra2+ {[%clk 0:01:00.6]} 38. Kg3 {[%clk 0:01:14.9]}
38... Ra3 {[%clk 0:01:02]} 39. Rf1 {[%clk 0:01:15.6]} 39... a5 {[%clk
0:01:02.4]} 0-1

[Event "*** Titled Tuesday 3|2 Blitz (Early)"]
[Site "Chess.com"]
[Date "2016.12.06"]
[Round "3"]
[White "stefanodinn"]
[Black "Aguiar94"]
[Result "0-1"]
[WhiteElo "2188"]
[BlackElo "2359"]
[TimeControl "180+2"]
[EndTime "11:33:25 PST"]
[Termination "Aguiar94 won on time"]

1. e4 {[%clk 0:02:59.1]} 1... c5 {[%clk 0:02:59.6]} 2. Nf3 {[%clk 0:02:59.2]}
2... e6 {[%clk 0:03:00.9]} 3. d4 {[%clk 0:02:59.8]} 3... cxd4 {[%clk 0:03:02.8]}
4. Nxd4 {[%clk 0:03:00.9]} 4... Nc6 {[%clk 0:03:03.8]} 5. Nc3 {[%clk 0:03:00.8]}
5... Qc7 {[%clk 0:03:05.1]} 6. g3 {[%clk 0:02:56.9]} 6... a6 {[%clk 0:03:05.6]}
7. Bg2 {[%clk 0:02:58]} 7... d6 {[%clk 0:03:05.6]} 8. O-O {[%clk 0:02:57.6]}
8... Bd7 {[%clk 0:03:07.2]} 9. Re1 {[%clk 0:02:49]} 9... Be7 {[%clk 0:03:08.1]}
10. Nxc6 {[%clk 0:02:32]} 10... Bxc6 {[%clk 0:03:10]} 11. Qg4 {[%clk 0:02:32.7]}
11... g6 {[%clk 0:03:11.3]} 12. a4 {[%clk 0:02:29.7]} 12... h5 {[%clk
0:03:09.2]} 13. Qe2 {[%clk 0:02:28.2]} 13... h4 {[%clk 0:03:11.1]} 14. a5 {[%clk
0:02:22.4]} 14... Rc8 {[%clk 0:02:58.6]} 15. Be3 {[%clk 0:02:14.4]} 15... Nf6
{[%clk 0:02:51.1]} 16. Bb6 {[%clk 0:02:12.6]} 16... Qb8 {[%clk 0:02:50.8]} 17.
Rad1 {[%clk 0:01:43]} 17... hxg3 {[%clk 0:02:37.6]} 18. hxg3 {[%clk 0:01:43.3]}
18... Rh5 {[%clk 0:02:20.8]} 19. Bf3 {[%clk 0:01:25.5]} 19... Re5 {[%clk
0:02:21.5]} 20. Qd2 {[%clk 0:01:06.9]} 20... Nd7 {[%clk 0:02:18.9]} 21. Bd4
{[%clk 0:01:00]} 21... Bg5 {[%clk 0:02:04.5]} 22. Be3 {[%clk 0:00:44.2]} 22...
Bxe3 {[%clk 0:02:04]} 23. Rxe3 {[%clk 0:00:44.4]} 23... Rxa5 {[%clk 0:02:05.4]}
24. Nd5 {[%clk 0:00:21]} 24... Rc5 {[%clk 0:01:57.1]} 25. b4 {[%clk 0:00:19.8]}
25... Rc4 {[%clk 0:01:55.3]} 26. Be2 {[%clk 0:00:18.8]} 26... Bxd5 {[%clk
0:01:51.4]} 27. exd5 {[%clk 0:00:12.1]} 27... Rxc2 {[%clk 0:01:52.5]} 28. Qd4
{[%clk 0:00:11.8]} 28... e5 {[%clk 0:01:52.5]} 29. Qh4 {[%clk 0:00:10.7]} 29...
R8c3 {[%clk 0:01:27.8]} 30. Rxc3 {[%clk 0:00:08.2]} 30... Rxc3 {[%clk
0:01:29.7]} 31. Kg2 {[%clk 0:00:09.5]} 31... Qa7 {[%clk 0:01:26.9]} 32. Qh8+
{[%clk 0:00:06.2]} 32... Ke7 {[%clk 0:01:27.6]} 33. Qh4+ {[%clk 0:00:06.1]}
33... Nf6 {[%clk 0:01:25.8]} 34. Qg5 {[%clk 0:00:04.7]} 34... Rc2 {[%clk
0:01:22.5]} 35. Kf1 {[%clk 0:00:04.8]} 35... Qb6 {[%clk 0:01:20.6]} 0-1

[Event "*** Titled Tuesday 3|2 Blitz (Early)"]
[Site "Chess.com"]
[Date "2016.12.06"]
[Round "3"]
[White "platy3"]
[Black "PowerThinking2650"]
[Result "1-0"]
[WhiteElo "2699"]
[BlackElo "2133"]
[TimeControl "180+2"]
[EndTime "11:34:06 PST"]
[Termination "platy3 won by checkmate"]

1. e4 {[%clk 0:03:00.5]} 1... e5 {[%clk 0:03:00]} 2. Nf3 {[%clk 0:02:58.9]} 2...
Nc6 {[%clk 0:03:01]} 3. Bb5 {[%clk 0:02:59.7]} 3... a6 {[%clk 0:03:01.9]} 4. Ba4
{[%clk 0:03:00.8]} 4... Nf6 {[%clk 0:03:02.6]} 5. O-O {[%clk 0:03:01.8]} 5...
Be7 {[%clk 0:03:04.1]} 6. Re1 {[%clk 0:03:02.9]} 6... b5 {[%clk 0:03:05.2]} 7.
Bb3 {[%clk 0:03:04.5]} 7... d6 {[%clk 0:03:06.7]} 8. c3 {[%clk 0:03:06.2]} 8...
O-O {[%clk 0:03:07.7]} 9. h3 {[%clk 0:03:07.8]} 9... Bb7 {[%clk 0:03:08.8]} 10.
d4 {[%clk 0:03:07.7]} 10... Re8 {[%clk 0:03:09.7]} 11. Nbd2 {[%clk 0:03:08.5]}
11... Bf8 {[%clk 0:03:10.5]} 12. a4 {[%clk 0:03:07.8]} 12... h6 {[%clk
0:03:09.4]} 13. Bc2 {[%clk 0:03:03]} 13... exd4 {[%clk 0:03:10.5]} 14. cxd4
{[%clk 0:03:04.5]} 14... Nb4 {[%clk 0:03:11.6]} 15. Bb1 {[%clk 0:03:06.1]} 15...
c5 {[%clk 0:03:12.8]} 16. d5 {[%clk 0:03:07.6]} 16... Nd7 {[%clk 0:03:13.9]} 17.
Ra3 {[%clk 0:03:08.4]} 17... c4 {[%clk 0:03:13.1]} 18. Ree3 {[%clk 0:03:07.5]}
18... Ne5 {[%clk 0:03:08.1]} 19. Nxe5 {[%clk 0:03:01.4]} 19... dxe5 {[%clk
0:02:59.2]} 20. Rac3 {[%clk 0:02:32.3]} 20... Bc5 {[%clk 0:02:37.7]} 21. Rg3
{[%clk 0:02:30.6]} 21... Qh4 {[%clk 0:02:38.3]} 22. Rcf3 {[%clk 0:02:12.1]}
22... f5 {[%clk 0:02:16.6]} 23. exf5 {[%clk 0:02:01.2]} 23... Bxd5 {[%clk
0:02:09.5]} 24. Rg4 {[%clk 0:02:02.2]} 24... Bxf3 {[%clk 0:02:02.4]} 25. Qxf3
{[%clk 0:02:00.9]} 25... Qd8 {[%clk 0:01:38.2]} 26. f6 {[%clk 0:01:57.4]} 26...
Ra7 {[%clk 0:01:28]} 27. Ne4 {[%clk 0:01:51.2]} 27... Bf8 {[%clk 0:00:39.5]} 28.
Bxh6 {[%clk 0:01:47.2]} 28... Rf7 {[%clk 0:00:26.1]} 29. fxg7 {[%clk 0:01:15.7]}
29... Bxg7 {[%clk 0:00:26.3]} 30. Rxg7+ {[%clk 0:01:15]} 30... Rxg7 {[%clk
0:00:22.6]} 31. Nf6+ {[%clk 0:01:15.1]} 31... Kh8 {[%clk 0:00:21.4]} 32. Nxe8
{[%clk 0:00:51.6]} 32... Qxe8 {[%clk 0:00:21.4]} 33. Qf6 {[%clk 0:00:43.8]}
33... Qg8 {[%clk 0:00:18.5]} 34. Bf5 {[%clk 0:00:36.8]} 34... Nd3 {[%clk
0:00:16.1]} 35. Be6 {[%clk 0:00:26.6]} 35... Qh7 {[%clk 0:00:15.8]} 36. Bxg7+
{[%clk 0:00:27.7]} 36... Qxg7 {[%clk 0:00:16.9]} 37. Qd8+ {[%clk 0:00:29.2]}
37... Kh7 {[%clk 0:00:17.6]} 38. Bf5+ {[%clk 0:00:30.8]} 38... Kh6 {[%clk
0:00:16.2]} 39. Qh4# {[%clk 0:00:30.7]} 1-0